[Event "*** Titled Tuesday 3|2 Blitz"]
[Site "Chess.com"]
[Date "2016.01.05"]
[Round "2"]
[White "GeorgMeier"]
[Black "Matibar"]
[Result "1-0"]
[WhiteElo "2678"]
[BlackElo "2396"]
[TimeControl "180+2"]
[EndTime "11:22:54 PST"]
[Termination "GeorgMeier won by resignation"]

1. Nf3 {[%clk 0:03:01.9]} 1... f5 {[%clk 0:02:59.1]} 2. c4 {[%clk 0:03:00.6]}
2... g6 {[%clk 0:02:59.2]} 3. Nc3 {[%clk 0:03:00.9]} 3... Nf6 {[%clk 0:02:58.3]}
4. d4 {[%clk 0:02:58.7]} 4... Bg7 {[%clk 0:02:57.3]} 5. g3 {[%clk 0:02:59.8]}
5... O-O {[%clk 0:02:57.4]} 6. Bg2 {[%clk 0:03:00.8]} 6... d6 {[%clk 0:02:51.2]}
7. O-O {[%clk 0:03:01.4]} 7... Nc6 {[%clk 0:02:44.5]} 8. d5 {[%clk 0:03:01.9]}
8... Na5 {[%clk 0:02:45.1]} 9. Qa4 {[%clk 0:03:02.8]} 9... c5 {[%clk 0:02:38.8]}
10. dxc6 {[%clk 0:03:03.7]} 10... Nxc6 {[%clk 0:02:37]} 11. Rd1 {[%clk
0:03:04.9]} 11... Kh8 {[%clk 0:02:37.8]} 12. Bf4 {[%clk 0:02:42.1]} 12... Be6
{[%clk 0:02:36.2]} 13. Rac1 {[%clk 0:02:35.3]} 13... Qb6 {[%clk 0:02:23.6]} 14.
Qb5 {[%clk 0:02:17.2]} 14... Ne4 {[%clk 0:02:08.7]} 15. Nxe4 {[%clk 0:02:13.5]}
15... fxe4 {[%clk 0:02:08.3]} 16. Ng5 {[%clk 0:02:14.9]} 16... Bg4 {[%clk
0:02:09]} 17. Bxe4 {[%clk 0:02:06.5]} 17... Bxe2 {[%clk 0:02:03]} 18. Rd2 {[%clk
0:01:45.9]} 18... Qxb5 {[%clk 0:01:19.1]} 19. cxb5 {[%clk 0:01:44.8]} 19... Bxb5
{[%clk 0:01:21]} 20. Ne6 {[%clk 0:01:44.3]} 20... Rfc8 {[%clk 0:01:22.6]} 21. b3
{[%clk 0:01:18.3]} 21... Nd8 {[%clk 0:00:24.7]} 22. Nc7 {[%clk 0:00:39.6]} 22...
Rab8 {[%clk 0:00:20.6]} 23. Rdc2 {[%clk 0:00:36.6]} 23... Bd7 {[%clk 0:00:21]}
24. Be3 {[%clk 0:00:35.5]} 24... b6 {[%clk 0:00:20.6]} 25. f4 {[%clk 0:00:32.5]}
25... Ne6 {[%clk 0:00:21.6]} 26. Nxe6 {[%clk 0:00:31.4]} 26... Bxe6 {[%clk
0:00:23.5]} 27. Rc7 {[%clk 0:00:30.1]} 27... Rxc7 {[%clk 0:00:24.7]} 28. Rxc7
{[%clk 0:00:32]} 28... Bf6 {[%clk 0:00:26.6]} 29. Rxa7 {[%clk 0:00:27.5]} 29...
d5 {[%clk 0:00:26.5]} 30. Bd3 {[%clk 0:00:27.3]} 30... d4 {[%clk 0:00:27.8]} 31.
Bd2 {[%clk 0:00:28.5]} 31... Rc8 {[%clk 0:00:28.9]} 32. Kf2 {[%clk 0:00:23.7]}
32... Kg7 {[%clk 0:00:29.2]} 33. Bb4 {[%clk 0:00:17.1]} 33... Kf7 {[%clk
0:00:28.9]} 34. Ke2 {[%clk 0:00:16.8]} 34... h5 {[%clk 0:00:24.4]} 35. Kf3
{[%clk 0:00:13.2]} 35... Bg4+ {[%clk 0:00:22.5]} 36. Kf2 {[%clk 0:00:13.6]}
36... h4 {[%clk 0:00:23.7]} 37. Be4 {[%clk 0:00:12.4]} 37... hxg3+ {[%clk
0:00:24.1]} 38. hxg3 {[%clk 0:00:13.8]} 38... Rh8 {[%clk 0:00:23]} 39. Kg2
{[%clk 0:00:13.9]} 39... Rd8 {[%clk 0:00:23.9]} 40. Bd3 {[%clk 0:00:14.2]} 40...
Bf5 {[%clk 0:00:24.3]} 41. Bxf5 {[%clk 0:00:14.3]} 41... gxf5 {[%clk 0:00:26.2]}
42. Kf3 {[%clk 0:00:15.7]} 42... Ke6 {[%clk 0:00:26.6]} 43. Rb7 {[%clk
0:00:16.5]} 43... d3 {[%clk 0:00:23]} 44. Rxb6+ {[%clk 0:00:16.6]} 44... Kd5
{[%clk 0:00:24.1]} 45. Bd2 {[%clk 0:00:17.7]} 45... e5 {[%clk 0:00:22.6]} 46.
Rxf6 {[%clk 0:00:17.1]} 1-0

[Event "*** Titled Tuesday 3|2 Blitz"]
[Site "Chess.com"]
[Date "2016.01.05"]
[Round "2"]
[White "Dlugy"]
[Black "VSERGUEI"]
[Result "1-0"]
[WhiteElo "2600"]
[BlackElo "2433"]
[TimeControl "180+2"]
[EndTime "11:23:07 PST"]
[Termination "Dlugy won by checkmate"]

1. d4 {[%clk 0:03:01.9]} 1... d5 {[%clk 0:03:00.7]} 2. Bf4 {[%clk 0:03:03.5]}
2... e6 {[%clk 0:02:58.2]} 3. e3 {[%clk 0:03:04.6]} 3... Bd6 {[%clk 0:02:59.3]}
4. Bg3 {[%clk 0:03:05.8]} 4... Nf6 {[%clk 0:02:59.7]} 5. Nd2 {[%clk 0:03:06.8]}
5... O-O {[%clk 0:02:59.5]} 6. Ngf3 {[%clk 0:03:07.6]} 6... b6 {[%clk
0:03:00.1]} 7. Bd3 {[%clk 0:03:02.8]} 7... Bb7 {[%clk 0:03:00.5]} 8. c3 {[%clk
0:02:57.6]} 8... Ne4 {[%clk 0:03:01.1]} 9. Qc2 {[%clk 0:02:54.1]} 9... f5 {[%clk
0:02:58]} 10. Bxd6 {[%clk 0:02:51.1]} 10... cxd6 {[%clk 0:02:58]} 11. O-O {[%clk
0:02:49.3]} 11... Nd7 {[%clk 0:02:57.3]} 12. c4 {[%clk 0:02:33.6]} 12... dxc4
{[%clk 0:02:47.5]} 13. Bxc4 {[%clk 0:02:26.5]} 13... d5 {[%clk 0:02:42.5]} 14.
Bb5 {[%clk 0:02:26.2]} 14... a6 {[%clk 0:02:20.5]} 15. Bxd7 {[%clk 0:02:26.5]}
15... Qxd7 {[%clk 0:02:21.1]} 16. Nxe4 {[%clk 0:02:21.9]} 16... dxe4 {[%clk
0:02:21.4]} 17. Ne5 {[%clk 0:02:23.4]} 17... Rfc8 {[%clk 0:02:21.9]} 18. Nxd7
{[%clk 0:02:18.5]} 18... Rxc2 {[%clk 0:02:21.2]} 19. Nxb6 {[%clk 0:02:20.4]}
19... Rb8 {[%clk 0:02:17.7]} 20. b3 {[%clk 0:02:18.8]} 20... Bc6 {[%clk
0:02:14.6]} 21. Nc4 {[%clk 0:02:17]} 21... Bb5 {[%clk 0:02:04.3]} 22. Rfc1
{[%clk 0:02:18]} 22... Re2 {[%clk 0:01:56.7]} 23. Kf1 {[%clk 0:02:12]} 23... Rb2
{[%clk 0:01:54.9]} 24. Ke1 {[%clk 0:02:12.7]} 24... Bxc4 {[%clk 0:01:55.1]} 25.
Rxc4 {[%clk 0:02:13.6]} 25... a5 {[%clk 0:01:53.9]} 26. Rc5 {[%clk 0:02:04.1]}
26... a4 {[%clk 0:01:45.8]} 27. bxa4 {[%clk 0:02:05]} 27... R8b4 {[%clk
0:01:45.6]} 28. a5 {[%clk 0:02:04.4]} 28... Ra4 {[%clk 0:01:46.4]} 29. a3 {[%clk
0:02:05.2]} 29... Kf7 {[%clk 0:01:46.7]} 30. h4 {[%clk 0:01:56]} 30... Kg6
{[%clk 0:01:37.6]} 31. Kf1 {[%clk 0:01:54.3]} 31... Kh5 {[%clk 0:01:37.9]} 32.
g3 {[%clk 0:01:55.4]} 32... Kg4 {[%clk 0:01:36.8]} 33. Kg2 {[%clk 0:01:56.8]}
33... h6 {[%clk 0:01:36.7]} 34. Re5 {[%clk 0:01:45.7]} 34... g5 {[%clk
0:01:27.5]} 35. hxg5 {[%clk 0:01:46.8]} 35... hxg5 {[%clk 0:01:27.6]} 36. Rxe6
{[%clk 0:01:48.2]} 36... Rc4 {[%clk 0:01:25.3]} 37. a6 {[%clk 0:01:27.3]} 37...
Rcc2 {[%clk 0:01:24.7]} 38. Rf1 {[%clk 0:01:28.7]} 38... Ra2 {[%clk 0:01:25.3]}
39. Rg6 {[%clk 0:01:15]} 39... Rxa3 {[%clk 0:01:01.3]} 40. Rh1 {[%clk
0:01:15.4]} 40... Rxf2+ {[%clk 0:01:02.2]} 41. Kxf2 {[%clk 0:01:16.4]} 41...
Ra2+ {[%clk 0:01:03.5]} 42. Ke1 {[%clk 0:01:17]} 42... Ra1+ {[%clk 0:01:04.8]}
43. Kd2 {[%clk 0:01:18.2]} 43... Rxh1 {[%clk 0:01:05.7]} 44. d5 {[%clk
0:01:19.1]} 44... Ra1 {[%clk 0:01:06]} 45. Rc6 {[%clk 0:01:12.7]} 45... Kf3
{[%clk 0:01:01.8]} 46. d6 {[%clk 0:01:13.2]} 46... f4 {[%clk 0:01:02.6]} 47.
gxf4 {[%clk 0:01:12.6]} 47... gxf4 {[%clk 0:01:03.2]} 48. d7 {[%clk 0:01:04.6]}
48... fxe3+ {[%clk 0:01:03.6]} 49. Kc2 {[%clk 0:01:05.3]} 49... Ra2+ {[%clk
0:00:58.1]} 50. Kb3 {[%clk 0:01:00.4]} 50... Rd2 {[%clk 0:00:53.3]} 51. Rf6+
{[%clk 0:00:57.7]} 51... Kg2 {[%clk 0:00:49]} 52. a7 {[%clk 0:00:58.4]} 52... e2
{[%clk 0:00:49.4]} 53. a8=Q {[%clk 0:00:56.4]} 53... e1=Q {[%clk 0:00:50.5]} 54.
Qg8+ {[%clk 0:00:54.4]} 54... Kh1 {[%clk 0:00:50.9]} 55. Rh6+ {[%clk 0:00:54.4]}
55... Rh2 {[%clk 0:00:51.4]} 56. Rxh2+ {[%clk 0:00:55.5]} 56... Kxh2 {[%clk
0:00:52.1]} 57. d8=Q {[%clk 0:00:57.4]} 57... Qb1+ {[%clk 0:00:52.4]} 58. Kc4
{[%clk 0:00:58.4]} 58... Qc2+ {[%clk 0:00:53.3]} 59. Kd4 {[%clk 0:00:59.2]}
59... Qd3+ {[%clk 0:00:54.3]} 60. Ke5 {[%clk 0:01:00.3]} 60... Qb5+ {[%clk
0:00:51.9]} 61. Qdd5 {[%clk 0:01:00.4]} 61... Qb2+ {[%clk 0:00:52.5]} 62. Ke6
{[%clk 0:00:58.1]} 62... Qb6+ {[%clk 0:00:51.5]} 63. Qd6+ {[%clk 0:00:59.2]}
63... Qxd6+ {[%clk 0:00:52.7]} 64. Kxd6 {[%clk 0:01:00.5]} 64... e3 {[%clk
0:00:53.4]} 65. Qa2+ {[%clk 0:01:00.6]} 65... Kg1 {[%clk 0:00:52.9]} 66. Qe2
{[%clk 0:01:02.5]} 66... Kh1 {[%clk 0:00:54.2]} 67. Ke5 {[%clk 0:01:03.4]} 67...
Kg1 {[%clk 0:00:55.3]} 68. Kf4 {[%clk 0:01:05.3]} 68... Kh1 {[%clk 0:00:56.4]}
69. Kg3 {[%clk 0:01:07]} 69... Kg1 {[%clk 0:00:09.1]} 70. Qg2# {[%clk
0:01:08.9]} 1-0

[Event "*** Titled Tuesday 3|2 Blitz"]
[Site "Chess.com"]
[Date "2016.01.05"]
[Round "2"]
[White "motivated_bishop"]
[Black "HansCoolNiemann"]
[Result "0-1"]
[WhiteElo "2241"]
[BlackElo "2208"]
[TimeControl "180+2"]
[EndTime "11:23:12 PST"]
[Termination "HansCoolNiemann won by resignation"]

1. d4 {[%clk 0:03:01.9]} 1... Nf6 {[%clk 0:02:36.2]} 2. c4 {[%clk 0:03:02.4]}
2... c5 {[%clk 0:02:35.4]} 3. d5 {[%clk 0:03:03.3]} 3... e6 {[%clk 0:02:36.7]}
4. Nc3 {[%clk 0:03:04.2]} 4... exd5 {[%clk 0:02:37.9]} 5. cxd5 {[%clk
0:03:06.1]} 5... d6 {[%clk 0:02:38.7]} 6. Nf3 {[%clk 0:03:07.2]} 6... g6 {[%clk
0:02:40.2]} 7. h3 {[%clk 0:03:06.5]} 7... Bg7 {[%clk 0:02:40.5]} 8. Bf4 {[%clk
0:03:07.2]} 8... a6 {[%clk 0:02:41.8]} 9. a4 {[%clk 0:03:08.3]} 9... O-O {[%clk
0:02:43]} 10. e3 {[%clk 0:03:09.2]} 10... Nh5 {[%clk 0:02:43.8]} 11. Bh2 {[%clk
0:03:09.8]} 11... f5 {[%clk 0:02:45.3]} 12. Be2 {[%clk 0:03:05.4]} 12... f4
{[%clk 0:02:46.1]} 13. e4 {[%clk 0:02:51.5]} 13... Nd7 {[%clk 0:02:43.1]} 14.
Nd2 {[%clk 0:02:42.9]} 14... Qg5 {[%clk 0:02:41.5]} 15. Nc4 {[%clk 0:02:29.7]}
15... Ne5 {[%clk 0:02:30.7]} 16. Nxe5 {[%clk 0:01:58.6]} 16... Bxe5 {[%clk
0:02:29.7]} 17. Bf3 {[%clk 0:01:27.4]} 17... Rb8 {[%clk 0:02:24.8]} 18. Qe2
{[%clk 0:01:16.1]} 18... Bd7 {[%clk 0:02:23.1]} 19. a5 {[%clk 0:01:10.3]} 19...
b5 {[%clk 0:02:12.9]} 20. axb6 {[%clk 0:01:11.2]} 20... Rxb6 {[%clk 0:02:12.3]}
21. O-O {[%clk 0:00:59.5]} 21... Rfb8 {[%clk 0:02:04.9]} 22. Rxa6 {[%clk
0:00:31.1]} 22... Rxb2 {[%clk 0:02:02.6]} 23. Ra8 {[%clk 0:00:32.1]} 23... Bxc3
{[%clk 0:01:58.1]} 24. Qxb2 {[%clk 0:00:28.7]} 24... Rxa8 {[%clk 0:01:36.4]} 25.
Qxc3 {[%clk 0:00:29.8]} 25... Bxh3 {[%clk 0:01:32.3]} 26. e5 {[%clk 0:00:31.1]}
26... Rf8 {[%clk 0:01:25]} 27. exd6 {[%clk 0:00:30.1]} 27... Bxg2 {[%clk
0:01:23.7]} 28. Bxg2 {[%clk 0:00:24.5]} 28... f3 {[%clk 0:01:24.2]} 29. Bg3
{[%clk 0:00:25.8]} 29... fxg2 {[%clk 0:01:24.8]} 30. Re1 {[%clk 0:00:21.9]}
30... Nxg3 {[%clk 0:01:21.8]} 31. Qxg3 {[%clk 0:00:15.7]} 31... Qxg3 {[%clk
0:01:21.6]} 32. fxg3 {[%clk 0:00:17.6]} 32... Rd8 {[%clk 0:01:22.7]} 33. Re6
{[%clk 0:00:16.3]} 33... c4 {[%clk 0:01:23.3]} 34. Kxg2 {[%clk 0:00:17.5]} 34...
c3 {[%clk 0:01:24.6]} 35. Re3 {[%clk 0:00:16.4]} 35... Rxd6 {[%clk 0:01:17]} 36.
Rxc3 {[%clk 0:00:17.5]} 36... Rxd5 {[%clk 0:01:18.3]} 37. Rc7 {[%clk 0:00:18.5]}
37... Rf5 {[%clk 0:01:17.8]} 38. g4 {[%clk 0:00:19.5]} 38... Rf7 {[%clk
0:01:18.5]} 39. Rc8+ {[%clk 0:00:18.1]} 39... Kg7 {[%clk 0:01:19.9]} 40. Kg3
{[%clk 0:00:19.6]} 40... Ra7 {[%clk 0:01:18.3]} 41. g5 {[%clk 0:00:20.2]} 41...
Ra3+ {[%clk 0:01:12.8]} 42. Kg4 {[%clk 0:00:21.5]} 42... Ra4+ {[%clk 0:01:14.1]}
43. Kg3 {[%clk 0:00:22.9]} 43... Ra7 {[%clk 0:01:11.7]} 44. Kg4 {[%clk
0:00:23.2]} 44... Rf7 {[%clk 0:01:13.2]} 45. Ra8 {[%clk 0:00:23.4]} 45... Rf1
{[%clk 0:01:10.9]} 46. Ra7+ {[%clk 0:00:24.2]} 46... Kg8 {[%clk 0:01:10.9]} 47.
Ra8+ {[%clk 0:00:25.2]} 47... Rf8 {[%clk 0:01:06.3]} 48. Ra7 {[%clk 0:00:25.7]}
48... Rd8 {[%clk 0:01:06.6]} 49. Rb7 {[%clk 0:00:26]} 49... Re8 {[%clk
0:01:01.7]} 50. Ra7 {[%clk 0:00:27.1]} 50... Re5 {[%clk 0:01:02.3]} 51. Ra8+
{[%clk 0:00:27.1]} 51... Kf7 {[%clk 0:01:03]} 52. Ra7+ {[%clk 0:00:28.3]} 52...
Re7 {[%clk 0:01:04.2]} 53. Ra8 {[%clk 0:00:26.8]} 53... Rc7 {[%clk 0:01:03.1]}
54. Ra6 {[%clk 0:00:26.3]} 54... Re7 {[%clk 0:01:00.4]} 55. Rb6 {[%clk 0:00:27]}
55... Re4+ {[%clk 0:00:57.4]} 56. Kf3 {[%clk 0:00:26.4]} 56... Re6 {[%clk
0:00:52.8]} 57. Rxe6 {[%clk 0:00:14.2]} 57... Kxe6 {[%clk 0:00:53.2]} 58. Ke4
{[%clk 0:00:15.4]} 58... Kd6 {[%clk 0:00:52.9]} 59. Kd4 {[%clk 0:00:16.6]} 59...
Ke6 {[%clk 0:00:54.2]} 60. Ke4 {[%clk 0:00:17.9]} 60... Kf7 {[%clk 0:00:54.7]}
61. Kd5 {[%clk 0:00:17]} 61... Kg7 {[%clk 0:00:55.8]} 62. Ke5 {[%clk 0:00:15]}
62... h5 {[%clk 0:00:56.1]} 63. gxh6+ {[%clk 0:00:15.8]} 63... Kxh6 {[%clk
0:00:56.8]} 64. Kf4 {[%clk 0:00:15.8]} 64... Kh5 {[%clk 0:00:58.2]} 65. Kf3
{[%clk 0:00:17.1]} 65... Kh4 {[%clk 0:00:57.9]} 66. Kf2 {[%clk 0:00:15.8]} 66...
g5 {[%clk 0:00:58.8]} 67. Kf3 {[%clk 0:00:16.1]} 67... Kh3 {[%clk 0:00:59.6]}
68. Kf2 {[%clk 0:00:17.5]} 68... g4 {[%clk 0:01:01]} 69. Kg1 {[%clk 0:00:15.7]}
69... Kg3 {[%clk 0:01:01.6]} 70. Kh1 {[%clk 0:00:15.5]} 70... Kf2 {[%clk
0:01:02.9]} 0-1

[Event "*** Titled Tuesday 3|2 Blitz"]
[Site "Chess.com"]
[Date "2016.01.05"]
[Round "2"]
[White "Maitreia"]
[Black "AsafGivon"]
[Result "1-0"]
[WhiteElo "2463"]
[BlackElo "2267"]
[TimeControl "180+2"]
[EndTime "11:23:17 PST"]
[Termination "Maitreia won by resignation"]

1. c4 {[%clk 0:03:01.9]} 1... c5 {[%clk 0:02:58.9]} 2. g3 {[%clk 0:03:03.2]}
2... g6 {[%clk 0:02:59.9]} 3. Bg2 {[%clk 0:03:04.7]} 3... Bg7 {[%clk 0:03:01.6]}
4. Nc3 {[%clk 0:03:06.4]} 4... Nc6 {[%clk 0:03:02.7]} 5. Nf3 {[%clk 0:03:08]}
5... e6 {[%clk 0:03:03.3]} 6. d4 {[%clk 0:03:09]} 6... cxd4 {[%clk 0:03:05.2]}
7. Nb5 {[%clk 0:03:09.7]} 7... d5 {[%clk 0:03:06.9]} 8. cxd5 {[%clk 0:03:10.6]}
8... exd5 {[%clk 0:03:08.8]} 9. Nbxd4 {[%clk 0:03:09.2]} 9... Nge7 {[%clk
0:03:09.8]} 10. O-O {[%clk 0:03:09.8]} 10... O-O {[%clk 0:03:10.9]} 11. b3
{[%clk 0:03:08.8]} 11... Nf5 {[%clk 0:02:51.6]} 12. Bb2 {[%clk 0:03:09]} 12...
Qb6 {[%clk 0:02:52.3]} 13. e3 {[%clk 0:03:08.7]} 13... Ncxd4 {[%clk 0:02:53.5]}
14. Nxd4 {[%clk 0:03:09.5]} 14... Nxd4 {[%clk 0:02:54.6]} 15. Bxd4 {[%clk
0:03:10.5]} 15... Bxd4 {[%clk 0:02:55.7]} 16. Qxd4 {[%clk 0:03:12]} 16... Qxd4
{[%clk 0:02:57]} 17. exd4 {[%clk 0:03:13.9]} 17... Be6 {[%clk 0:02:58.7]} 18.
Rac1 {[%clk 0:03:14.5]} 18... Rfc8 {[%clk 0:02:59.8]} 19. Rfe1 {[%clk
0:02:59.8]} 19... Kf8 {[%clk 0:02:58.9]} 20. h4 {[%clk 0:02:59]} 20... h5 {[%clk
0:02:36.9]} 21. Bf3 {[%clk 0:02:59.5]} 21... a5 {[%clk 0:02:30]} 22. a3 {[%clk
0:03:00.3]} 22... b6 {[%clk 0:02:14.9]} 23. Kg2 {[%clk 0:02:57.8]} 23... a4
{[%clk 0:01:51.2]} 24. b4 {[%clk 0:02:54.9]} 24... Rab8 {[%clk 0:01:52.6]} 25.
Be2 {[%clk 0:02:46]} 25... Bd7 {[%clk 0:01:45]} 26. Bd3 {[%clk 0:02:43.6]} 26...
Re8 {[%clk 0:01:13.3]} 27. Re3 {[%clk 0:02:32.5]} 27... Rbc8 {[%clk 0:01:11.2]}
28. Rxe8+ {[%clk 0:02:30.4]} 28... Kxe8 {[%clk 0:01:12.3]} 29. Rxc8+ {[%clk
0:02:30.1]} 29... Bxc8 {[%clk 0:01:14.2]} 30. Kf3 {[%clk 0:02:25.9]} 30... Ke7
{[%clk 0:01:14.5]} 31. Kf4 {[%clk 0:02:27.1]} 31... Bd7 {[%clk 0:00:46.3]} 32.
Ke5 {[%clk 0:02:23.3]} 32... Bc6 {[%clk 0:00:47]} 33. f3 {[%clk 0:02:13]} 33...
f6+ {[%clk 0:00:47.9]} 34. Kf4 {[%clk 0:02:14.2]} 34... Kf7 {[%clk 0:00:47.3]}
35. g4 {[%clk 0:02:13.3]} 35... hxg4 {[%clk 0:00:32.7]} 36. fxg4 {[%clk
0:02:15.2]} 36... Bd7 {[%clk 0:00:34.2]} 37. Be2 {[%clk 0:02:01]} 37... Kg7
{[%clk 0:00:31.3]} 38. Bf3 {[%clk 0:02:01.1]} 38... Be6 {[%clk 0:00:32.9]} 39.
g5 {[%clk 0:01:50.2]} 39... Kf7 {[%clk 0:00:33.7]} 40. Bd1 {[%clk 0:01:48.3]}
40... Bd7 {[%clk 0:00:34.6]} 41. Be2 {[%clk 0:01:46]} 41... Kg7 {[%clk
0:00:33.6]} 42. Bf3 {[%clk 0:01:45.7]} 42... Be6 {[%clk 0:00:33.6]} 43. b5
{[%clk 0:01:44.3]} 43... Bd7 {[%clk 0:00:34.7]} 44. Bxd5 {[%clk 0:01:44]} 44...
Bxb5 {[%clk 0:00:36]} 45. Be6 {[%clk 0:01:37]} 45... Bd3 {[%clk 0:00:20.1]} 46.
Bd7 {[%clk 0:01:24.9]} 46... b5 {[%clk 0:00:15.5]} 47. Ke3 {[%clk 0:01:26.6]}
47... Bc4 {[%clk 0:00:07.3]} 48. Kd2 {[%clk 0:01:24.6]} 48... Kf7 {[%clk
0:00:08]} 49. Kc3 {[%clk 0:01:24.5]} 49... Ke7 {[%clk 0:00:09.5]} 50. Bh3 {[%clk
0:01:14.1]} 50... f5 {[%clk 0:00:09.3]} 51. Kb4 {[%clk 0:00:57.1]} 51... Kd6
{[%clk 0:00:07.7]} 52. h5 {[%clk 0:00:56.2]} 52... gxh5 {[%clk 0:00:09.6]} 53.
Bxf5 {[%clk 0:00:57.8]} 53... h4 {[%clk 0:00:10.6]} 54. g6 {[%clk 0:00:58.3]}
54... Ke7 {[%clk 0:00:06.2]} 55. Kc5 {[%clk 0:00:47.1]} 55... Kf6 {[%clk
0:00:07.6]} 56. Be4 {[%clk 0:00:48.8]} 56... h3 {[%clk 0:00:08]} 57. d5 {[%clk
0:00:50.2]} 57... Bf1 {[%clk 0:00:07.1]} 58. d6 {[%clk 0:00:49.2]} 58... Bg2
{[%clk 0:00:08.5]} 59. d7 {[%clk 0:00:50.6]} 59... Ke7 {[%clk 0:00:03.2]} 60. g7
{[%clk 0:00:49.1]} 60... Bxe4 {[%clk 0:00:02.8]} 1-0

[Event "*** Titled Tuesday 3|2 Blitz"]
[Site "Chess.com"]
[Date "2016.01.05"]
[Round "2"]
[White "pKiLz5Rn9b"]
[Black "Tesla37"]
[Result "0-1"]
[WhiteElo "2350"]
[BlackElo "2535"]
[TimeControl "180+2"]
[EndTime "11:24:01 PST"]
[Termination "Tesla37 won by checkmate"]

1. e4 {[%clk 0:03:01.9]} 1... c5 {[%clk 0:02:59.1]} 2. c3 {[%clk 0:03:02.9]}
2... Nf6 {[%clk 0:02:57.2]} 3. e5 {[%clk 0:03:04]} 3... Nd5 {[%clk 0:02:58.4]}
4. d4 {[%clk 0:03:05.7]} 4... cxd4 {[%clk 0:02:59.4]} 5. cxd4 {[%clk 0:03:07.4]}
5... d6 {[%clk 0:02:59.7]} 6. Nf3 {[%clk 0:03:08.2]} 6... dxe5 {[%clk
0:02:57.8]} 7. dxe5 {[%clk 0:03:00]} 7... Nc6 {[%clk 0:02:58.4]} 8. Bc4 {[%clk
0:02:55.5]} 8... Nb6 {[%clk 0:02:58.4]} 9. Qxd8+ {[%clk 0:02:54.7]} 9... Nxd8
{[%clk 0:02:59.3]} 10. Bb5+ {[%clk 0:02:56]} 10... Bd7 {[%clk 0:02:59.8]} 11.
Nc3 {[%clk 0:02:57.7]} 11... e6 {[%clk 0:02:58.1]} 12. Be3 {[%clk 0:02:44]}
12... Bb4 {[%clk 0:02:58.1]} 13. Bxd7+ {[%clk 0:02:34.4]} 13... Nxd7 {[%clk
0:02:57.8]} 14. Rc1 {[%clk 0:02:28.9]} 14... a6 {[%clk 0:02:49.9]} 15. Ke2
{[%clk 0:02:27.7]} 15... Nc6 {[%clk 0:02:49]} 16. Bf4 {[%clk 0:02:21.4]} 16...
Ke7 {[%clk 0:02:34.1]} 17. Ne4 {[%clk 0:02:16.4]} 17... h6 {[%clk 0:02:16.9]}
18. h4 {[%clk 0:02:16.3]} 18... f5 {[%clk 0:02:10.4]} 19. exf6+ {[%clk 0:02:17]}
19... gxf6 {[%clk 0:02:09.6]} 20. Rhd1 {[%clk 0:02:05.1]} 20... e5 {[%clk
0:02:04.2]} 21. Be3 {[%clk 0:01:49.7]} 21... f5 {[%clk 0:01:55.5]} 22. Ng3
{[%clk 0:01:01.5]} 22... Raf8 {[%clk 0:01:49.5]} 23. a3 {[%clk 0:00:34.2]} 23...
Bd6 {[%clk 0:01:48.9]} 24. Nh5 {[%clk 0:00:29]} 24... f4 {[%clk 0:01:42.3]} 25.
Bd2 {[%clk 0:00:30.1]} 25... Rhg8 {[%clk 0:01:38.5]} 26. Rg1 {[%clk 0:00:20.5]}
26... e4 {[%clk 0:01:37.9]} 27. Ne1 {[%clk 0:00:22]} 27... Nd4+ {[%clk
0:01:37.8]} 28. Kf1 {[%clk 0:00:23]} 28... Rf5 {[%clk 0:01:33.1]} 29. g4 {[%clk
0:00:24]} 29... fxg3 {[%clk 0:01:31.3]} 30. Be3 {[%clk 0:00:10.9]} 30... Nb3
{[%clk 0:01:19.9]} 31. Rc3 {[%clk 0:00:11.8]} 31... Nd2+ {[%clk 0:01:20.3]} 32.
Ke2 {[%clk 0:00:11.4]} 32... Nf3 {[%clk 0:01:21.2]} 33. Rxg3 {[%clk 0:00:11.7]}
33... Bxg3 {[%clk 0:01:17]} 34. Nxg3 {[%clk 0:00:13.6]} 34... Ng1+ {[%clk
0:01:10.1]} 35. Kd1 {[%clk 0:00:13.5]} 35... Rd5+ {[%clk 0:01:10.3]} 36. Kc2
{[%clk 0:00:14.6]} 36... Nf6 {[%clk 0:01:02.6]} 37. Bxh6 {[%clk 0:00:13.9]}
37... Nh3 {[%clk 0:00:50.9]} 38. Be3 {[%clk 0:00:11.6]} 38... Ke6 {[%clk
0:00:43.2]} 39. Ng2 {[%clk 0:00:10.3]} 39... Rd7 {[%clk 0:00:34.5]} 40. Rc4
{[%clk 0:00:09.5]} 40... Ke5 {[%clk 0:00:27.3]} 41. Rc5+ {[%clk 0:00:10.6]}
41... Rd5 {[%clk 0:00:24.3]} 42. Rc7 {[%clk 0:00:11.3]} 42... b5 {[%clk
0:00:20.7]} 43. Ne2 {[%clk 0:00:07.6]} 43... Rxg2 {[%clk 0:00:18.7]} 44. Re7+
{[%clk 0:00:07.1]} 44... Kd6 {[%clk 0:00:18.9]} 45. Rf7 {[%clk 0:00:09]} 45...
Ke6 {[%clk 0:00:19.3]} 46. Rb7 {[%clk 0:00:10.2]} 46... Rd6 {[%clk 0:00:14.2]}
47. h5 {[%clk 0:00:08.3]} 47... Nd5 {[%clk 0:00:14.6]} 48. Nd4+ {[%clk
0:00:07.2]} 48... Kf6 {[%clk 0:00:15.5]} 49. Bh6 {[%clk 0:00:05.8]} 49... Rxf2+
{[%clk 0:00:15]} 50. Kb3 {[%clk 0:00:07.5]} 50... e3 {[%clk 0:00:15.6]} 51. Rb8
{[%clk 0:00:07.5]} 51... Rd7 {[%clk 0:00:15.5]} 52. Re8 {[%clk 0:00:05.1]} 52...
Re7 {[%clk 0:00:16]} 53. Rf8+ {[%clk 0:00:06.7]} 53... Rf7 {[%clk 0:00:16.8]}
54. Re8 {[%clk 0:00:07.9]} 54... e2 {[%clk 0:00:17.7]} 55. Nxe2 {[%clk
0:00:05.3]} 55... Rf3+ {[%clk 0:00:18.2]} 56. Ka2 {[%clk 0:00:06]} 56... Nhf4
{[%clk 0:00:18.4]} 57. Nd4 {[%clk 0:00:06.3]} 57... Rh3 {[%clk 0:00:17.2]} 58.
Rd8 {[%clk 0:00:03.7]} 58... Rxh5 {[%clk 0:00:17]} 59. Bf8 {[%clk 0:00:05.3]}
59... Ke5 {[%clk 0:00:17.1]} 60. Nc6+ {[%clk 0:00:06.1]} 60... Ke4 {[%clk
0:00:18.2]} 61. Re8+ {[%clk 0:00:07.7]} 61... Kd3 {[%clk 0:00:18.1]} 62. Bd6
{[%clk 0:00:09.1]} 62... Kd2 {[%clk 0:00:17.6]} 63. Re4 {[%clk 0:00:09.2]} 63...
Nd3 {[%clk 0:00:18.1]} 64. Rd4 {[%clk 0:00:08.1]} 64... Ke3 {[%clk 0:00:17.6]}
65. Rg4 {[%clk 0:00:08]} 65... Rh3 {[%clk 0:00:17.2]} 66. Nd4 {[%clk 0:00:06.2]}
66... Rf2 {[%clk 0:00:17.8]} 67. Kb3 {[%clk 0:00:03.2]} 67... Rxb2# {[%clk
0:00:18.3]} 0-1